Workbook

Sheet 읍면동별 세대 및 인구
A1: 여수시 읍면동별 세대 및 인구
A2: 작성기준 : 2015.4.30. 현재 | J2: (단위 : 세대, 명)
A3: 구 분 | B3: 세대수1) | C3: 합 계 | F3: 한국인 | I3: 외국인
C4: 계 | D4: 남 | E4: 여 | F4: 계 | G4: 남 | H4: 여 | I4: 계 | J4: 남 | K4: 여
A5: 2010년말 | B5: 110,613 | C5: 293,488 | D5: 148,455 | E5: 145,033 | F5: 293,488 | G5: 148,455 | H5: 145,033 | I5: 2,390 | J5: 1,430 | K5: 960
A6: 2011년말 | B6: 111,921 | C6: 295,538 | D6: 149,827 | E6: 145,711 | F6: 292,750 | G6: 148,115 | H6: 144,635 | I6: 2,788 | J6: 1,712 | K6: 1,076
A7: 2012년말 | B7: 112,907 | C7: 295,215 | D7: 149,735 | E7: 145,480 | F7: 292,217 | G7: 147,922 | H7: 144,295 | I7: 2,998 | J7: 1,813 | K7: 1,185
A8: 2013년말 | B8: 114,364 | C8: 294,565 | D8: 149,547 | E8: 145,018 | F8: 291,366 | G8: 147,539 | H8: 143,827 | I8: 3,199 | J8: 2,008 | K8: 1,191
A9: 2014년말 | B9: 116,100 | C9: 294,459 | D9: 149,725 | E9: 144,734 | F9: 290,900 | G9: 147,346 | H9: 143,554 | I9: 3,559 | J9: 2,379 | K9: 1,180
A10: 2015.1월 | B10: 116,501 | C10: 295,690 | D10: 150,362 | E10: 145,328 | F10: 292,121 | G10: 147,980 | H10: 144,141 | I10: 3,569 | J10: 2,382 | K10: 1,187
A11: 2015.2월 | B11: 116,591 | C11: 295,122 | D11: 150,182 | E11: 144,940 | F11: 291,522 | G11: 147,778 | H11: 143,744 | I11: 3,600 | J11: 2,404 | K11: 1,196
A12: 2015.3월 | B12: 116,702 | C12: 294,547 | D12: 149,991 | E12: 144,556 | F12: 290,957 | G12: 147,593 | H12: 143,364 | I12: 3,590 | J12: 2,398 | K12: 1,192
A13: 2015.4월 | B13: =SUM(B14:B40) -> 116,766 | C13: =D13+E13 -> 294,384 | D13: =SUM(D14:D40) -> 149,895 | E13: =SUM(E14:E40) -> 144,489 | F13: =G13+H13 -> 290,818 | G13: =SUM(G14:G40) -> 147,542 | H13: =SUM(H14:H40) -> 143,276 | I13: =J13+K13 -> 3,566 | J13: =SUM(J14:J40) -> 2,353 | K13: =SUM(K14:K40) -> 1,213
A14: 돌산읍 | B14: 6,317 | C14: =SUM(D14:E14) -> 15,008 | D14: =G14+J14 -> 7,794 | E14: =H14+K14 -> 7,214 | F14: =SUM(G14:H14) -> 14,459 | G14: 7,342 | H14: 7,117 | I14: =SUM(J14:K14) -> 549 | J14: 452 | K14: 97
A15: 소라면 | B15: 7,413 | C15: =SUM(D15:E15) -> 18,230 | D15: =G15+J15 -> 9,250 | E15: =H15+K15 -> 8,980 | F15: =SUM(G15:H15) -> 18,110 | G15: 9,225 | H15: 8,885 | I15: =SUM(J15:K15) -> 120 | J15: 25 | K15: 95
A16: 율촌면 | B16: 3,339 | C16: 7,298 | D16: =G16+J16 -> 3,752 | E16: 3,546 | F16: 7,129 | G16: 3,637 | H16: 3,492 | I16: 169 | J16: 115 | K16: 54
A17: 화양면 | B17: 3,388 | C17: 7,284 | D17: 3,761 | E17: 3,523 | F17: 7,120 | G17: 3,644 | H17: 3,476 | I17: 164 | J17: 117 | K17: 47
A18: 남면 | B18: 1,771 | C18: 3,397 | D18: 1,733 | E18: 1,664 | F18: 3,332 | G18: 1,678 | H18: 1,654 | I18: 65 | J18: 55 | K18: 10
A19: 화정면 | B19: 1,316 | C19: 2,531 | D19: 1,246 | E19: 1,285 | F19: 2,482 | G19: 1,206 | H19: 1,276 | I19: 49 | J19: 40 | K19: 9
A20: 삼산면 | B20: 1,295 | C20: 2,548 | D20: 1,438 | E20: 1,110 | F20: 2,460 | G20: 1,361 | H20: 1,099 | I20: 88 | J20: 77 | K20: 11
A21: 동문동 | B21: 2,506 | C21: 5,012 | D21: 2,569 | E21: 2,443 | F21: 4,950 | G21: 2,530 | H21: 2,420 | I21: 62 | J21: 39 | K21: 23
A22: 한려동 | B22: 1,755 | C22: 3,543 | D22: 1,787 | E22: 1,756 | F22: 3,519 | G22: 1,775 | H22: 1,744 | I22: 24 | J22: 12 | K22: 12
A23: 중앙동 | B23: 2,619 | C23: 5,751 | D23: 2,884 | E23: 2,867 | F23: 5,663 | G23: 2,822 | H23: 2,841 | I23: 88 | J23: 62 | K23: 26
A24: 충무동 | B24: 2,363 | C24: 4,910 | D24: 2,539 | E24: 2,371 | F24: 4,866 | G24: 2,511 | H24: 2,355 | I24: 44 | J24: 28 | K24: 16
A25: 광림동 | B25: 3,388 | D25: 3,843 | E25: 3,616 | F25: 7,407 | G25: 3,828 | H25: 3,579 | I25: 52 | J25: 15 | K25: 37
A26: 서강동 | B26: 1,989 | C26: 4,462 | D26: 2,243 | E26: 2,219 | F26: 4,431 | G26: 2,229 | H26: 2,202 | I26: 31 | J26: 14 | K26: 17
A27: 대교동 | B27: 3,317 | C27: 6,868 | D27: 3,618 | E27: 3,250 | F27: 6,607 | G27: 3,390 | H27: 3,217 | I27: 261 | J27: 228 | K27: 33
A28: 국동 | B28: 5,253 | C28: 13,056 | D28: 6,729 | E28: 6,327 | F28: 12,779 | G28: 6,504 | H28: 6,275 | I28: 277 | J28: 225 | K28: 52
A29: 월호동 | B29: 2,893 | C29: 8,235 | D29: 4,215 | E29: 4,020 | F29: 7,989 | G29: 3,982 | H29: 4,007 | I29: 246 | J29: 233 | K29: 13
A30: 여서동 | B30: 8,036 | C30: 22,457 | D30: 11,160 | E30: 11,297 | F30: 22,330 | G30: 11,098 | H30: 11,232 | I30: 127 | J30: 62 | K30: 65
A31: 문수동 | B31: 8,761 | C31: 23,009 | D31: 11,540 | E31: 11,469 | F31: 22,809 | G31: 11,441 | H31: 11,368 | I31: 200 | J31: 99 | K31: 101
A32: 미평동 | B32: 5,483 | C32: 13,432 | D32: 6,934 | E32: 6,498 | F32: 13,334 | G32: 6,899 | H32: 6,435 | I32: 98 | J32: 35 | K32: 63
A33: 둔덕동 | B33: 3,904 | C33: 11,336 | D33: 5,683 | E33: 5,653 | F33: 11,260 | G33: 5,650 | H33: 5,610 | I33: 76 | J33: 33 | K33: 43
A34: 만덕동 | B34: 3,611 | C34: 9,520 | D34: 4,782 | E34: 4,738 | F34: 9,383 | G34: 4,699 | H34: 4,684 | I34: 137 | J34: 83 | K34: 54
A35: 쌍봉동 | B35: 13,278 | C35: 36,903 | D35: 18,795 | E35: 18,108 | F35: 36,703 | G35: 18,708 | H35: 17,995 | I35: 200 | J35: 87 | K35: 113
A36: 시전동 | B36: 8,974 | C36: 26,012 | D36: 12,946 | E36: 13,066 | F36: 25,881 | G36: 12,903 | H36: 12,978 | I36: 131 | J36: 43 | K36: 88
A37: 여천동 | B37: 9,093 | C37: 23,452 | D37: 12,089 | E37: 11,363 | F37: 23,306 | G37: 12,028 | H37: 11,278 | I37: 146 | J37: 61 | K37: 85
A38: 주삼동 | B38: 2,846 | C38: 8,333 | D38: 4,253 | E38: 4,080 | F38: 8,291 | G38: 4,236 | H38: 4,055 | I38: 42 | J38: 17 | K38: 25
A39: 삼일동 | B39: 1,285 | C39: 3,057 | D39: 1,644 | E39: 1,413 | F39: 2,944 | G39: 1,548 | H39: 1,396 | I39: 113 | J39: 96 | K39: 17
A40: 묘도동 | B40: 573 | C40: 1,281 | D40: 668 | E40: 613 | F40: 1,274 | G40: 668 | H40: 606 | I40: 7 | J40: 0 | K40: 7
A41: 자료 : 민원지적과
A42: 주 : 1) 세대수에는 외국인 세대 제외

Sheet 65세이상 인구(총괄)
A1: 65세이상 인구 현황(총괄)
A2: 작성기준 : 2015.4.30. 현재 | D2: (단위 : 명)
A3: 구 분 | B3: 계 | C3: 남 | D3: 여 | E3: 노령화 지수
A4: 2010년말 | B4: 36,601 | C4: 14,376 | D4: 22,225 | E4: 76.5
A5: 2011년말 | B5: 37,830 | C5: 15,023 | D5: 22,807 | E5: 82.0
A6: 2012년말 | B6: 39,671 | C6: 15,929 | D6: 23,742 | E6: 89.4
A7: 2013년말 | B7: 41,369 | C7: 16,775 | D7: 24,594 | E7: 96.8
A8: 2014년말 | B8: 43,225 | C8: 17,752 | D8: 25,473 | E8: 105.4
A9: 2015. 1월 | B9: 43,476 | C9: 17,885 | D9: 25,591 | E9: 106.2
A10: 2015. 2월 | B10: 43,593 | C10: 17,958 | D10: 25,635 | E10: 107.2
A11: 2015. 3월 | B11: 43,696 | C11: 18,034 | D11: 25,662 | E11: 107.9
A12: 2015. 4월 | B12: 43,809 | C12: 18,117 | D12: 25,692 | E12: 108.4
A13: 자료 : 민원지적과
A14: 주 : 노령화 지수 = (65세이상인구 / 0~14세 인구) * 100
